bitfinex/quotes_ETHUSD_20250603
["timestamp","ask_amount","ask_price","bid_price","bid_amount"]
[1748916275517,1.0104,2643.5,2643.4,4.99800673]
[1748916276813,1.0104,2643.5,2643.4,3.78300673]
[1748916277238,1.0104,2643.5,2643.4,11.78300673]
[1748916278746,0.35373412,2643.6,2643.5,11.78286362]
[1748916280318,0.35373412,2643.6,2643.4,3.78300673]
[1748916280526,0.35373412,2643.6,2643.5,12.99786362]
[1748916281448,0.35373412,2643.6,2643.5,14.57036362]
[1748916281788,0.35373412,2643.6,2643.5,18.73436362]
[1748916283024,0.35373412,2643.6,2643.5,19.11256362]
[1748916283825,0.35373412,2643.6,2643.5,23.88256362]
[1748916284130,0.35373412,2643.6,2643.5,23.50436362]
[1748916284432,0.35373412,2643.6,2643.5,18.12536362]
[1748916284593,0.35373412,2643.6,2643.5,23.49536362]
[1748916285501,0.35373412,2643.6,2643.5,19.33936362]
[1748916285840,0.35373412,2643.6,2643.5,23.87056362]
[1748916286340,0.35373412,2643.6,2643.5,23.86856362]
[1748916287802,0.35373412,2643.6,2643.5,23.86456362]
[1748916288004,0.35373412,2643.6,2643.5,18.12536362]
[1748916288214,0.35373412,2643.6,2643.5,19.33936362]
[1748916288599,0.35373412,2643.6,2643.5,19.71756362]
[1748916290218,0.35373412,2643.6,2643.5,11.78286362]
[1748916290417,0.35373412,2643.6,2643.5,12.99686362]
[1748916290705,0.35373412,2643.6,2643.5,12.94986362]
[1748916290910,0.35373412,2643.6,2643.5,14.21386549]
[1748916291106,0.35373412,2643.6,2643.5,12.94986362]
[1748916291310,0.35373412,2643.6,2643.5,11.78286362]
[1748916291513,0.35373412,2643.6,2643.5,12.94986362]
[1748916291805,0.35373412,2643.6,2643.5,13.32806362]
[1748916292223,0.35373412,2643.6,2643.5,12.94986362]
[1748916292845,0.35373412,2643.6,2643.5,13.87806362]
[1748916293219,0.35373412,2643.6,2643.5,12.94986362]
[1748916293853,0.35373412,2643.6,2643.5,13.32806362]
[1748916294551,0.35373412,2643.6,2643.5,10.80185575]
[1748916294719,0.35373412,2643.6,2643.5,15.19365575]
[1748916295730,1.32223412,2643.6,2643.4,3.78300673]
[1748916296069,1.32223412,2643.6,2643.5,3.78286362]
[1748916296251,1.32223412,2643.6,2643.4,3.78299686]
[1748916296454,1.32223412,2643.6,2643.0,4.77]
[1748916296656,1.32223412,2643.6,2643.3,4.95002208]
[1748916296824,1.32223412,2643.6,2643.3,1.167]
[1748916297022,1.32223412,2643.6,2643.3,4.95014043]
[1748916297464,1.32223412,2643.6,2643.2,3.78327942]
[1748916297465,1.32223412,2643.6,2643.1,8.0]
[1748916297700,0.9685,2643.5,2643.0,5.937]
[1748916297866,6.87461162,2643.3,2641.3,4.77]
[1748916298196,3.78472485,2642.2,2640.9,0.66666667]
[1748916298401,8.98322485,2642.2,2640.9,0.66666667]
[1748916298553,8.98322485,2642.2,2641.4,1.167]
[1748916298972,3.78568681,2641.6,2641.4,1.167]
[1748916299182,1.0073,2641.5,2640.9,0.66666667]
[1748916299388,1.0073,2641.5,2641.2,1.167]
[1748916299769,4.79303608,2641.5,2641.2,1.167]
[1748916299971,1.0073,2641.5,2640.9,4.45321391]
[1748916300165,1.0073,2641.5,2641.2,1.167]
[1748916301697,1.0073,2641.5,2641.2,1.70217919]
[1748916301995,1.0073,2641.5,2641.2,1.167]
[1748916302295,1.0073,2641.5,2641.3,1.168]
[1748916302988,1.0073,2641.5,2641.1,0.02]
[1748916303190,1.0073,2641.5,2641.2,1.168]
[1748916303367,1.0073,2641.5,2641.2,4.95402974]
[1748916303569,1.0073,2641.5,2641.3,3.78598516]
[1748916303765,1.0073,2641.5,2641.4,3.78587112]
[1748916303970,1.0073,2641.5,2641.4,4.95387112]
[1748916304162,1.0073,2641.5,2641.4,1.168]
[1748916304366,1.0109,2642.0,2641.5,3.78568577]
[1748916304603,1.49048023,2642.0,2641.4,1.168]
[1748916304807,1.0109,2642.0,2641.4,1.168]
[1748916305019,1.0109,2642.0,2641.6,3.78549785]
[1748916305217,3.78393497,2642.8,2641.6,3.78549785]
[1748916305218,3.78399421,2642.8,2642.0,8.0]
[1748916305435,1.032,2643.1,2642.1,1.168]
[1748916305579,3.78381403,2642.9,2642.3,11.78456061]
[1748916305784,0.85992878,2642.9,2642.4,3.82216505]
[1748916306017,3.78380741,2642.9,2642.3,3.78452739]
[1748916306226,4.18,2643.2,2641.7,8.0]
[1748916306227,1.032,2643.0,2641.7,8.0]
[1748916306427,1.032,2642.2,2641.6,8.0]
[1748916306575,1.032,2642.2,2641.8,1.168]
[1748916306900,1.032,2642.2,2641.8,4.95321173]
[1748916307087,1.032,2642.2,2641.8,1.168]
[1748916307614,3.78498335,2642.1,2641.4,8.0]
[1748916307814,4.816745,2642.2,2641.5,1.168]
[1748916308637,4.816745,2642.2,2641.6,3.78556881]
[1748916308816,4.816745,2642.2,2641.5,1.168]
[1748916308817,1.032,2642.2,2641.5,1.168]
[1748916309115,1.032,2642.2,2641.8,3.78527836]
[1748916309317,1.032,2642.2,2641.9,1.168]
[1748916309714,1.032,2642.2,2641.4,0.55]
[1748916309933,1.032,2642.2,2641.7,3.78540631]
[1748916310134,4.8167468,2642.2,2641.8,1.168]
[1748916310324,1.032,2642.2,2641.8,1.168]
[1748916310636,1.032,2642.2,2641.8,4.95328589]
[1748916311440,1.032,2642.2,2641.8,1.168]
[1748916312135,1.032,2642.2,2641.8,4.95321809]
[1748916312340,1.032,2642.2,2641.8,1.168]
[1748916312552,5.29840506,2642.2,2641.9,1.168]
[1748916312708,3.78488396,2642.1,2641.9,1.168]
[1748916312908,5.29842743,2642.2,2641.9,1.168]
[1748916313825,1.51366313,2642.2,2642.0,1.168]
[1748916314329,3.78610059,2641.3,2640.7,3.78686278]
[1748916314544,1.005,2641.5,2640.5,9.168]
[1748916314739,1.005,2641.5,2640.9,4.45315229]
[1748916314930,1.005,2641.5,2641.0,3.78638381]
[1748916315132,1.005,2641.5,2640.9,0.66666667]
[1748916315437,1.005,2641.5,2641.2,1.168]
[1748916315438,3.78601446,2641.3,2641.2,1.168]
[1748916315637,3.78601446,2641.3,2640.9,0.66666667]
[1748916315950,4.79074487,2641.5,2640.9,0.66666667]
[1748916315951,3.7861578,2641.2,2640.9,0.66666667]
[1748916316111,3.78602382,2641.3,2641.1,1.188]
[1748916316316,0.85767736,2641.3,2641.1,1.188]
[1748916316648,3.7861578,2641.2,2641.1,1.188]
[1748916316812,0.85767736,2641.3,2641.1,1.188]
[1748916317549,0.85767736,2641.3,2641.1,0.02]
[1748916317753,3.78602075,2641.3,2641.2,1.168]
[1748916318838,1.005,2641.5,2641.2,1.168]
[1748916320351,5.1551,2641.9,2641.2,1.168]
[1748916320515,3.78569661,2641.6,2641.3,1.168]
[1748916320717,3.78573802,2641.5,2641.3,1.168]
[1748916321023,3.78546588,2641.7,2641.4,1.179]
[1748916321233,5.09590368,2641.7,2641.4,1.179]
[1748916321461,1.3104378,2641.7,2641.4,1.179]
[1748916321934,4.16388249,2641.8,2641.4,1.179]
[1748916321935,0.37851831,2641.8,2641.4,1.179]
[1748916322131,4.78026585,2641.9,2641.4,1.179]
[1748916322455,3.78540225,2641.8,2641.4,1.179]
[1748916323556,4.78031704,2641.9,2641.4,1.179]
[1748916323760,0.9951,2641.9,2641.1,0.02]
[1748916323957,1.0473,2641.7,2641.2,1.179]
[1748916324143,3.78561044,2641.6,2641.2,1.179]
[1748916324345,3.78601446,2641.3,2641.1,0.02]
[1748916324547,4.7479578,2641.2,2641.1,0.02]
[1748916324936,0.9618,2641.2,2641.1,0.02]
[1748916325143,1.47298,2641.2,2641.1,0.02]
[1748916325361,5.2591378,2641.2,2641.1,0.02]
[1748916325519,1.47298,2641.2,2641.1,0.02]
[1748916325957,0.9618,2641.2,2641.1,0.02]
[1748916326253,4.7479578,2641.2,2641.1,0.02]
[1748916326839,0.9618,2641.2,2641.1,0.02]
[1748916327354,4.7479578,2641.2,2641.1,0.02]
[1748916327732,5.1058,2641.5,2641.1,0.02]
[1748916327916,3.78601499,2641.3,2641.1,0.02]
[1748916328353,4.20031921,2641.4,2641.1,0.02]
[1748916328517,0.4144,2641.4,2641.1,0.02]
[1748916328722,0.9618,2641.5,2641.1,0.02]
[1748916328929,0.9618,2641.5,2641.1,3.80617373]
[1748916329260,11.78480356,2642.2,2641.1,3.80617373]
[1748916329261,3.78444954,2642.4,2641.2,8.03785795]
[1748916329424,3.78517709,2641.9,2641.3,10.66052902]
[1748916329625,4.54218505,2641.9,2641.3,6.87461162]
[1748916329928,3.78556677,2641.7,2641.4,1.179]
[1748916330131,3.78560655,2641.6,2641.4,1.179]
[1748916330665,3.78550237,2641.7,2641.4,1.179]
[1748916331318,4.76764774,2641.8,2641.4,1.179]
[1748916331518,3.78552137,2641.7,2641.4,1.179]
[1748916331715,1.91326939,2641.8,2641.4,1.179]
[1748916331953,0.9823,2641.8,2641.4,1.179]
[1748916332149,3.78552123,2641.7,2641.4,1.179]
[1748916332562,4.76763735,2641.8,2641.4,1.179]
[1748916332778,3.78553492,2641.7,2641.4,1.179]
[1748916333386,0.9542,2642.1,2641.5,0.03785478]
[1748916333527,3.78501489,2642.0,2641.4,12.96481462]
[1748916333730,4.73914604,2642.1,2641.5,10.66023841]
[1748916333954,0.9542,2642.1,2641.6,8.0]
[1748916334168,8.86487322,2642.3,2641.7,3.78534137]
[1748916334343,4.73887322,2642.3,2641.7,3.78534137]
[1748916334669,4.73887322,2642.3,2641.6,8.0]
[1748916334670,3.78475018,2642.2,2641.6,11.78552078]
[1748916334870,3.78475018,2642.2,2641.7,3.7854365]
[1748916335027,0.9542,2642.3,2641.6,11.78557426]
[1748916335028,4.73878563,2642.3,2641.6,11.78557426]
[1748916335224,3.78487948,2642.1,2641.6,8.0]
[1748916336244,0.9542,2642.3,2641.5,8.0]
[1748916336464,3.78497396,2642.1,2641.6,0.03785181]
[1748916336636,0.9542,2642.3,2641.5,6.87461162]
[1748916336856,3.78451596,2642.4,2641.8,3.78519423]
[1748916337058,0.999,2642.5,2641.6,8.0]
[1748916337245,3.78496284,2642.1,2641.6,8.0]
[1748916337440,3.78502779,2642.0,2641.6,8.0]
[1748916337674,3.78497754,2642.1,2641.7,1.179]
[1748916337883,8.90240697,2642.5,2641.7,12.96435003]
[1748916338082,3.78465829,2642.3,2641.7,12.96435003]
[1748916338392,3.78459894,2642.3,2641.7,12.96435003]
[1748916338865,3.78472677,2642.2,2641.7,12.96435003]
[1748916339070,3.78462839,2642.3,2641.7,10.44300187]
[1748916339279,3.78476235,2642.2,2641.7,9.179]
[1748916339642,3.78477704,2642.2,2641.7,9.179]
[1748916339868,3.78485949,2642.2,2641.7,9.179]
[1748916340080,3.78464526,2642.3,2641.7,12.96441901]
[1748916340393,3.78464526,2642.3,2641.8,3.78529214]
[1748916340778,0.9567,2642.9,2642.1,3.78486809]
[1748916340948,0.9567,2643.5,2642.6,3.78408751]
[1748916341138,3.78338031,2643.2,2642.7,1.179]
[1748916341329,4.54011424,2643.1,2642.7,1.179]
[1748916342139,0.75666641,2643.1,2642.7,1.179]
[1748916342347,3.7838212,2642.9,2642.7,1.179]
[1748916342773,4.81142889,2643.0,2642.7,1.179]
[1748916343568,1.0278,2643.0,2642.7,1.179]
[1748916343778,4.105,2643.2,2642.7,1.179]
[1748916343989,4.104,2643.3,2642.8,7.85461162]
[1748916344288,3.78329297,2643.2,2642.7,1.179]
[1748916344842,3.783197,2643.3,2642.7,4.96299413]
[1748916345151,4.103,2643.4,2642.8,1.179]
[1748916345348,3.78339817,2643.2,2642.8,1.179]
[1748916345749,1.33003412,2643.6,2642.9,3.78368291]
[1748916345988,7.8829454,2643.5,2642.9,3.78368291]
[1748916346136,7.8839454,2643.5,2642.9,3.78368291]
[1748916346342,3.7829454,2643.5,2642.9,3.78368291]
[1748916346577,5.11280945,2643.6,2643.0,3.7835012]
[1748916346741,3.782889,2643.5,2642.9,11.78365994]
[1748916347166,6.44774589,2643.6,2642.9,8.0]
[1748916347367,3.78294341,2643.5,2642.9,3.78371301]
[1748916347957,2.66493425,2643.6,2642.8,1.179]
[1748916348158,3.78322996,2643.3,2642.8,1.179]
[1748916348462,1.33003412,2643.6,2642.6,15.85461162]
[1748916348463,3.78351506,2643.1,2642.6,8.98]
[1748916348662,4.096,2643.4,2642.9,1.178]
[1748916348865,7.87906319,2643.4,2642.9,9.178]
[1748916349073,5.11278504,2643.6,2643.0,3.78349292]
[1748916349074,4.096,2643.5,2643.0,3.78349292]
[1748916349373,4.36084414,2643.5,2642.9,9.178]
[1748916349572,0.57797665,2643.5,2643.0,3.78350362]
[1748916349894,9.20878665,2643.6,2643.2,3.78329297]
[1748916349895,0.35373412,2643.6,2643.2,3.78329297]
[1748916350186,0.35373412,2643.6,2643.3,3.78307152]
[1748916350683,0.35373412,2643.6,2643.1,3.78336138]
[1748916350899,5.056,2643.5,2642.7,1.0036]
[1748916351037,3.78300673,2643.4,2642.8,4.96177804]
[1748916351239,0.88390067,2643.3,2642.8,9.178]
[1748916351475,4.096,2643.4,2642.9,3.78367092]
[1748916351685,0.963,2643.5,2642.9,3.78367092]
[1748916351891,5.059,2643.5,2643.0,3.78349505]
[1748916352050,4.1364675,2643.6,2642.8,4.96182681]
[1748916352051,0.35373412,2643.6,2643.1,3.78331918]
[1748916352239,4.68595202,2643.6,2643.1,3.78331918]
[1748916352579,0.35373412,2643.6,2643.1,8.0]
[1748916352782,0.35373412,2643.6,2643.2,3.78329297]
[1748916352938,0.35373412,2643.6,2643.3,3.78306235]
[1748916353135,0.35373412,2643.6,2643.3,7.86981162]
[1748916353340,0.35373412,2643.6,2643.5,3.78286362]
[1748916356773,0.35373412,2643.6,2643.5,16.80096362]
[1748916357563,0.35373412,2643.6,2643.5,17.35096362]
[1748916357748,0.02,2643.9,2643.8,4.33243437]
[1748916357947,0.9309,2645.2,2644.0,8.0]
[1748916358200,4.71142431,2645.2,2644.7,8.0]
[1748916358402,4.71142431,2645.2,2644.8,1.14]
[1748916358403,0.9309,2645.2,2644.8,1.14]
[1748916358753,0.2125643,2645.5,2644.8,12.92100423]
[1748916359005,1.1434643,2645.5,2644.8,12.92100423]
[1748916359496,3.78031832,2645.3,2644.8,9.14]
[1748916360454,3.78031832,2645.3,2644.8,8.0]
[1748916360655,0.9509,2644.9,2644.6,8.0]
[1748916361092,0.9509,2644.9,2644.7,1.139]
[1748916361338,0.9509,2644.9,2644.5,10.65603811]
[1748916361339,0.9509,2644.9,2644.8,1.139]
[1748916362027,0.02,2644.9,2644.8,1.139]
[1748916362745,0.02,2644.9,2643.8,8.0]
[1748916363035,0.9999,2644.8,2644.3,9.139]
[1748916363383,4.78092778,2644.8,2644.3,9.139]
[1748916363609,0.9999,2644.8,2644.3,12.92058844]
[1748916363806,4.78093017,2644.8,2644.4,1.139]
[1748916364006,3.78131994,2644.6,2644.5,1.139]
[1748916364381,5.26103772,2644.8,2644.5,1.139]
[1748916364584,3.78114986,2644.7,2644.5,1.139]
[1748916364806,5.26104512,2644.8,2644.5,1.139]
[1748916365008,0.9999,2644.8,2644.5,1.139]
[1748916365201,4.78090877,2644.8,2644.5,1.139]
[1748916365515,0.9999,2644.8,2644.5,1.139]
[1748916367635,4.78094635,2644.8,2644.5,1.139]
[1748916367844,3.78136742,2644.6,2644.0,3.78205181]
[1748916368139,3.78129017,2644.6,2644.5,1.139]
[1748916368290,4.25940919,2644.6,2644.5,1.139]
[1748916368620,0.47811902,2644.6,2644.5,1.139]
[1748916368797,4.78098357,2644.8,2644.5,1.139]
[1748916369197,3.78129547,2644.6,2644.5,1.139]
[1748916370720,4.7809372,2644.8,2644.5,1.139]
[1748916371018,3.78115685,2644.7,2644.5,1.139]
[1748916371217,0.9999,2644.8,2644.3,11.7816672]
[1748916371417,0.9999,2644.8,2644.4,1.139]
[1748916371821,0.02,2644.9,2644.6,8.0]
[1748916372128,0.02,2644.9,2644.6,11.78121428]
[1748916372293,0.02,2644.9,2644.7,3.78112664]
[1748916372625,0.02,2644.9,2644.8,3.78100423]
[1748916373885,0.02,2644.9,2644.8,18.65561585]
[1748916374524,0.991,2644.8,2642.7,1.83709362]
[1748916374722,11.34601563,2644.1,2641.9,0.9391]
[1748916374945,0.991,2643.2,2642.4,1.226]
[1748916375124,3.78354006,2643.1,2642.4,8.10061162]
[1748916375422,5.26,2643.2,2642.5,1.226]
[1748916375725,5.29783935,2643.2,2642.5,1.52277757]
[1748916375923,3.78351207,2643.1,2642.5,1.226]
[1748916376126,0.03783935,2643.0,2642.5,1.226]
[1748916376287,3.82142901,2643.0,2642.1,3.8048405]
[1748916376491,3.82142901,2643.0,2642.2,1.226]
[1748916376686,0.03783935,2643.0,2642.3,1.226]
[1748916377033,3.8213999,2643.1,2642.3,0.551]
[1748916377216,3.78382073,2642.9,2642.4,1.226]
[1748916377418,0.03783935,2643.1,2642.4,1.226]
[1748916377620,3.78398803,2642.8,2642.4,1.226]
[1748916377819,3.82159532,2642.9,2642.4,1.226]
[1748916378031,3.78387402,2642.8,2642.2,8.0]
[1748916378215,3.78387402,2642.8,2642.3,1.226]
[1748916378618,3.78387402,2642.8,2642.4,1.226]
[1748916379529,3.78387402,2642.8,2642.2,8.0]
[1748916379733,3.78387402,2642.8,2642.5,1.226]
[1748916380136,0.03783935,2642.9,2642.1,0.05783937]
[1748916380137,3.82157812,2642.9,2642.1,0.05783937]
[1748916380308,0.03783935,2642.7,2642.6,1.226]
[1748916380637,4.1660234,2642.8,2642.6,1.226]
[1748916380789,3.78418509,2642.6,2642.3,8.0]
[1748916381433,3.78437616,2642.5,2642.4,1.226]
[1748916381733,3.78429517,2642.5,2642.4,1.226]
[1748916382211,3.78435125,2642.5,2642.4,1.226]
[1748916382541,3.78420804,2642.6,2642.4,1.226]
[1748916382736,0.03783935,2642.7,2642.5,1.226]
[1748916382910,0.03783935,2642.8,2642.5,1.226]
[1748916383300,3.78399368,2642.8,2642.5,1.226]
[1748916383495,0.35452188,2642.7,2642.5,3.78426429]
[1748916383741,0.35452188,2642.7,2642.6,1.226]
[1748916384317,0.35452188,2642.7,2642.6,13.98535197]
[1748916386780,0.35452188,2642.7,2642.6,8.0]
[1748916387072,0.35452188,2642.7,2642.6,9.226]
[1748916387424,0.35452188,2642.7,2642.6,13.01015197]
[1748916388652,0.35452188,2642.7,2642.6,8.0]
[1748916388860,4.13853065,2642.7,2642.6,1.226]
[1748916389070,5.44524928,2642.7,2642.6,1.226]
[1748916389769,1.66124051,2642.7,2642.2,8.165]
[1748916389932,3.78429517,2642.5,2642.3,1.226]
[1748916390124,3.8220438,2642.6,2642.3,1.226]
[1748916390360,3.82199248,2642.6,2642.3,1.226]
[1748916390558,3.82199775,2642.6,2642.3,1.226]
[1748916391030,3.78430981,2642.5,2642.3,1.226]
[1748916391267,3.78430981,2642.5,2642.2,8.165]
[1748916391268,3.82229375,2642.4,2642.2,8.165]
[1748916391479,4.58294088,2642.4,2642.3,1.227]
[1748916391681,4.58294088,2642.4,2642.1,0.02]
[1748916391682,3.78472485,2642.2,2642.1,0.02]
[1748916391863,3.8225642,2642.2,2642.1,1.247]
[1748916392225,3.8225642,2642.2,2642.1,0.02]
[1748916392432,3.8225642,2642.2,2642.1,1.247]
[1748916392653,4.75207405,2642.2,2642.1,0.02]
[1748916392841,4.75207405,2642.2,2642.1,1.247]
[1748916393465,0.76064713,2642.4,2642.1,1.247]
[1748916393665,0.03783935,2642.4,2642.1,1.247]
[1748916393843,3.82232496,2642.4,2642.1,1.247]
[1748916394043,3.78460363,2642.3,2642.1,1.247]
[1748916394235,3.82232808,2642.4,2642.1,1.247]
[1748916394445,0.03783935,2642.4,2642.1,1.247]
[1748916394843,0.03783935,2642.5,2642.1,1.247]
[1748916395043,0.96483935,2642.6,2642.1,5.03177737]
[1748916395356,0.96483935,2642.6,2642.2,3.7847074]
[1748916395674,4.74899189,2642.6,2642.1,1.247]
[1748916395872,0.35452188,2642.7,2642.2,3.78469468]
[1748916396077,4.17638398,2642.7,2642.1,5.03177435]
[1748916396444,8.37938398,2642.7,2642.1,5.03177435]
[1748916396651,0.35452188,2642.7,2642.2,3.78468657]
[1748916396968,8.37837953,2642.7,2642.1,5.0318049]
[1748916397135,3.78416855,2642.6,2642.1,1.247]
[1748916397982,4.55252188,2642.7,2642.1,1.247]
[1748916398185,8.33654864,2642.7,2642.1,1.247]
[1748916398377,8.33654864,2642.7,2642.1,5.03178507]
[1748916398883,3.8220061,2642.6,2642.1,1.247]
[1748916399073,0.03783935,2642.6,2642.1,1.247]
[1748916399277,0.03783935,2642.6,2642.1,0.02]
[1748916399663,3.78472485,2642.2,2642.1,0.02]
[1748916399840,3.8225642,2642.2,2642.1,1.247]
[1748916400178,3.8225642,2642.2,2642.1,0.02]
[1748916401381,4.7294642,2642.2,2642.1,0.02]
[1748916401680,3.78587112,2641.4,2641.2,1.227]
[1748916401886,3.7861578,2641.2,2641.1,0.02]
[1748916402470,7.9741578,2641.2,2641.1,0.02]
[1748916402851,8.01199715,2641.2,2641.1,0.02]
[1748916403689,8.87359715,2641.2,2641.1,0.02]
[1748916403994,10.10171934,2641.2,2641.1,0.02]
[1748916404762,10.09571934,2641.2,2641.1,0.02]
[1748916404984,10.45049643,2641.2,2641.1,0.02]
[1748916405194,10.44849643,2641.2,2641.1,0.02]
[1748916405383,10.4484949,2641.2,2641.1,0.02]
[1748916405694,10.09371934,2641.2,2641.1,0.02]
[1748916406654,10.448491,2641.2,2641.1,0.02]
[1748916407998,6.62326219,2641.2,2641.1,0.02]
[1748916408201,6.66110154,2641.2,2641.1,0.02]
[1748916408395,5.39514,2641.2,2641.1,0.02]
[1748916408965,5.74990741,2641.2,2641.1,0.02]
[1748916409155,5.39514,2641.2,2641.1,0.02]
[1748916409696,5.74990401,2641.2,2641.1,0.02]
[1748916409999,5.39514,2641.2,2641.1,0.02]
[1748916410224,6.31325598,2641.2,2641.1,0.02]
[1748916410569,6.66802372,2641.2,2641.1,0.02]
[1748916410776,10.83202372,2641.2,2641.1,0.02]
[1748916411016,10.79418437,2641.2,2641.1,0.02]
[1748916411314,10.43941663,2641.2,2641.1,0.02]
[1748916411515,10.79404906,2641.2,2641.1,0.02]
[1748916411812,10.43941663,2641.2,2641.1,0.02]
[1748916412010,10.7940459,2641.2,2641.1,0.02]
[1748916412209,10.43941663,2641.2,2641.1,0.02]
[1748916412512,10.78905117,2641.2,2641.1,0.02]
[1748916413416,11.14368157,2641.2,2641.1,0.02]
[1748916413714,1.98229337,2641.2,2641.1,0.02]
[1748916413947,1.06417739,2641.2,2641.1,0.02]
[1748916414212,4.85033519,2641.2,2641.1,0.02]
[1748916414601,4.88817454,2641.2,2641.1,0.02]
[1748916414798,1.10201674,2641.2,2641.1,0.02]
[1748916415791,4.88817454,2641.2,2641.1,0.02]
[1748916416479,6.1707807,2641.2,2641.1,0.02]
[1748916416683,1.10201674,2641.2,2641.1,0.02]
[1748916416883,4.88817454,2641.2,2641.1,0.02]
[1748916418281,4.88817454,2641.2,2641.1,1.213]
[1748916419815,1.10201674,2641.2,2641.1,1.213]
[1748916420114,1.06417739,2641.2,2641.1,1.213]
[1748916420318,1.10201674,2641.2,2641.1,1.213]
[1748916420818,1.06417739,2641.2,2641.1,13.83970116]
[1748916421622,1.06417739,2641.2,2641.1,10.0534]
[1748916421789,1.06417739,2641.2,2641.1,13.83970116]
[1748916421995,1.06417739,2641.2,2641.1,10.0534]
[1748916423626,1.06417739,2641.2,2641.1,13.83970116]
[1748916424323,1.06417739,2641.2,2641.1,10.0534]
[1748916424509,1.06417739,2641.2,2641.1,13.83970116]
[1748916424924,1.06417739,2641.2,2641.1,10.0534]
[1748916425130,1.06417739,2641.2,2641.1,13.83970116]
[1748916425642,0.03325554,2641.2,2641.1,17.96270116]
[1748916425926,0.8835,2642.5,2641.5,0.8989]
[1748916426084,0.8835,2642.5,2641.7,8.0]
[1748916426282,0.92133935,2642.5,2641.8,0.03784709]
[1748916426489,0.92133935,2642.5,2642.0,3.78499532]
[1748916426710,0.03783935,2642.6,2642.1,0.8779]
[1748916426926,0.03783935,2642.6,2642.1,4.66274521]
[1748916427991,3.82203059,2642.6,2642.1,0.8779]
[1748916428601,0.03783935,2642.6,2642.1,0.8779]
[1748916428803,0.03783935,2642.6,2642.1,4.66272424]
[1748916429016,0.03783935,2642.6,2642.1,0.8779]
[1748916429225,0.03783935,2642.6,2642.1,4.66267029]
[1748916429419,0.03783935,2642.6,2642.3,3.78447017]
[1748916429753,0.03783935,2642.6,2641.9,9.193]
[1748916430034,0.03783935,2642.6,2642.3,3.78445739]
[1748916430560,0.03783935,2642.6,2642.3,3.78453666]
[1748916430850,0.03783935,2642.6,2642.3,3.78447994]
[1748916431466,0.39236123,2642.7,2642.4,3.78432942]
[1748916431657,0.35452188,2642.7,2642.2,0.03784444]
[1748916431810,0.35452188,2642.7,2641.9,1.193]
[1748916432343,0.35452188,2642.7,2642.4,3.7843575]
[1748916432649,0.35452188,2642.7,2642.2,0.8518]
[1748916432837,0.35452188,2642.7,2642.5,3.78420465]
[1748916433152,0.35452188,2642.7,2642.4,3.78439977]
[1748916433320,0.40182375,2642.7,2642.4,3.78439977]
[1748916433706,0.40182375,2642.7,2642.2,0.8518]
[1748916433943,0.40182375,2642.7,2642.2,4.63643842]
[1748916434142,0.35452188,2642.7,2641.9,10.0448]
[1748916434341,0.35452188,2642.7,2642.3,3.78448186]
[1748916434544,0.35452188,2642.7,2642.1,3.78475501]
[1748916434705,0.35452188,2642.7,2641.9,10.0448]
[1748916434706,0.35452188,2642.7,2642.3,3.78458161]
[1748916434908,0.35452188,2642.7,2642.3,8.0]
[1748916435108,0.35452188,2642.7,2642.3,11.78452781]
[1748916435706,0.35452188,2642.7,2641.9,2.0448]
[1748916435906,4.63064156,2642.6,2642.0,4.93195854]
[1748916436148,0.04730816,2642.5,2642.0,4.93195854]
[1748916436469,0.04730816,2642.5,2642.1,1.147]
[1748916436677,0.04730816,2642.5,2642.1,4.93176532]
[1748916436900,0.04730816,2642.5,2642.1,1.147]
[1748916437178,3.83171336,2642.5,2642.1,1.147]
[1748916437380,3.78466613,2642.3,2642.1,1.147]
[1748916437577,0.04731178,2642.2,2642.1,1.147]
[1748916437774,3.83197643,2642.3,2642.1,1.147]
[1748916437970,0.04731175,2642.3,2642.1,1.147]
[1748916438182,0.8464,2642.6,2642.1,1.147]
[1748916438372,0.35452188,2642.7,2642.2,0.866]
[1748916438747,0.35452188,2642.7,2642.3,3.78458161]
[1748916438941,0.35452188,2642.7,2642.2,4.65066798]
[1748916439137,0.35452188,2642.7,2642.2,4.65067172]
[1748916439404,0.35452188,2642.7,2642.2,0.866]
[1748916439563,0.35452188,2642.7,2642.4,3.78433257]
[1748916439746,0.35452188,2642.7,2642.5,3.78426101]
[1748916440070,0.35452188,2642.7,2642.6,3.78415197]
[1748916440384,0.35452188,2642.7,2642.6,4.71456133]
[1748916440689,0.35452188,2642.7,2642.6,4.69565197]
[1748916441995,0.35452188,2642.7,2642.6,4.71455581]
[1748916442162,0.35452188,2642.7,2642.6,4.69565197]
[1748916442369,0.35452188,2642.7,2642.6,5.22167584]
[1748916442668,0.35452188,2642.7,2642.6,5.20277122]
[1748916443453,0.35452188,2642.7,2642.6,4.69565197]
[1748916443655,0.35452188,2642.7,2642.5,8.0]
[1748916444001,0.35452188,2642.7,2642.6,1.146]
[1748916445355,0.35452188,2642.7,2642.3,0.01892071]
[1748916445705,0.35452188,2642.7,2642.6,1.146]
[1748916446406,0.35452188,2642.7,2642.6,4.93015197]
[1748916446795,0.35452188,2642.7,2642.6,1.146]
[1748916447163,0.35452188,2642.7,2642.6,4.93015197]
[1748916448005,0.35452188,2642.7,2642.6,1.146]
[1748916448693,0.35452188,2642.7,2642.6,4.93015197]
[1748916452672,0.35452188,2642.7,2642.6,1.146]
[1748916452883,0.35452188,2642.7,2642.6,4.93015197]
[1748916453607,0.35452188,2642.7,2642.6,12.93015197]
[1748916454897,0.35452188,2642.7,2642.6,13.78405197]
[1748916456391,0.35452188,2642.7,2642.6,11.78415197]
[1748916456686,0.35452188,2642.7,2642.6,12.93015197]
[1748916458518,0.35452188,2642.7,2642.6,9.146]
[1748916458810,0.35452188,2642.7,2642.6,12.93015197]
[1748916459514,0.35452188,2642.7,2642.6,4.93015197]
[1748916459879,0.35452188,2642.7,2642.6,1.146]